bitfinex-derivatives/quotes_SOLF0:USTF0_20250901
["timestamp","ask_amount","ask_price","bid_price","bid_amount"]
[1756690685917,131.3,201.66,201.61,19.77]
[1756690686114,7.47,201.65,201.61,19.77]
[1756690686618,7.47,201.65,201.62,19.77]
[1756690686820,131.3,201.66,201.62,19.77]
[1756690687017,7.47,201.65,201.57,7.7]
[1756690687219,7.47,201.65,201.61,19.77]
[1756690688016,3.5050158,201.68,201.62,19.77]
[1756690688216,17.32,201.67,201.64,19.77]
[1756690688423,24.1250158,201.66,201.6,7.25]
[1756690688622,7.99,201.65,201.55,7.25]
[1756690688824,7.99,201.65,201.6,19.77]
[1756690689120,24.1250158,201.66,201.6,19.77]
[1756690689518,7.99,201.65,201.6,19.77]
[1756690689713,24.1250158,201.66,201.61,19.77]
[1756690689916,139.29,201.65,201.61,19.77]
[1756690690113,131.3,201.65,201.55,7.25]
[1756690690312,7.99,201.64,201.6,19.77]
[1756690690723,131.3,201.65,201.6,19.77]
[1756690691016,7.99,201.64,201.6,19.77]
[1756690691215,7.99,201.64,201.55,7.25]
[1756690691420,139.29,201.65,201.59,19.77]
[1756690691816,139.29,201.65,201.55,7.25]
[1756690692018,139.29,201.65,201.59,19.77]
[1756690692621,139.29,201.65,201.51,7.25]
[1756690692622,7.99,201.65,201.51,7.25]
[1756690692822,131.3,201.64,201.51,7.25]
[1756690693025,11.4950158,201.66,201.62,19.77]
[1756690693321,131.3,201.65,201.62,19.77]
[1756690693518,131.3,201.65,201.58,7.25]
[1756690693822,139.29,201.65,201.62,19.77]
[1756690694024,7.99,201.65,201.62,19.77]
[1756690694216,333.32,201.68,201.62,19.77]
[1756690694720,7.99,201.67,201.5,3.5050158]
[1756690694921,70.72,201.66,201.54,7.25]
[1756690695120,70.72,201.66,201.64,19.77]
[1756690695623,70.72,201.66,201.6,7.25]
[1756690695825,70.72,201.66,201.64,19.77]
[1756690696325,333.32,201.68,201.65,19.77]
[1756690696526,131.3,201.67,201.65,19.77]
[1756690696728,131.3,201.67,201.6,7.25]
[1756690697019,131.3,201.67,201.65,19.77]
[1756690697425,131.28,201.66,201.6,7.25]
[1756690697627,131.28,201.66,201.65,19.77]
[1756690698024,131.28,201.66,201.6,7.25]
[1756690698228,333.32,201.68,201.65,19.77]
[1756690698524,131.28,201.67,201.57,7.25]
[1756690698728,131.28,201.67,201.62,19.77]
[1756690698916,7.99,201.66,201.62,19.77]
[1756690699120,131.28,201.67,201.57,7.25]
[1756690699322,7.99,201.66,201.62,19.77]
[1756690699722,7.99,201.66,201.57,7.25]
[1756690699723,333.32,201.68,201.64,7.25]
[1756690699923,131.28,201.67,201.66,19.77]
[1756690700324,131.28,201.67,201.6,7.25]
[1756690700528,131.28,201.67,201.65,19.77]
[1756690700825,7.99,201.66,201.54,7.25]
[1756690701026,134.7850158,201.67,201.62,19.77]
[1756690701430,7.99,201.66,201.54,7.25]
[1756690701927,7.99,201.66,201.61,19.77]
[1756690702120,134.7850158,201.67,201.61,19.77]
[1756690702320,7.99,201.66,201.54,7.25]
[1756690702828,3.5050158,201.64,201.54,7.25]
[1756690703022,131.26,201.63,201.54,7.25]
[1756690703228,7.99,201.59,201.46,7.25]
[1756690703425,341.31,201.68,201.57,7.25]
[1756690703624,139.23,201.67,201.57,7.25]
[1756690703931,139.23,201.67,201.63,19.77]
[1756690704429,139.23,201.67,201.57,7.25]
[1756690704638,139.23,201.67,201.6,7.25]
[1756690704931,131.24,201.67,201.64,19.77]
[1756690706029,333.32,201.68,201.65,7.25]
[1756690706232,333.32,201.68,201.59,7.25]
[1756690706430,131.24,201.67,201.59,7.25]
[1756690706628,131.24,201.67,201.62,7.25]
[1756690707031,7.99,201.77,201.67,7.25]
[1756690707231,7.99,201.73,201.58,7.25]
[1756690707427,7.99,201.73,201.57,3.5050158]
[1756690707428,139.23,201.72,201.68,19.77]
[1756690707637,3.5050158,201.7,201.55,7.25]
[1756690708027,3.5050158,201.7,201.63,19.77]
[1756690709138,7.99,201.69,201.63,19.77]
[1756690709335,131.22,201.68,201.63,19.77]
[1756690709531,7.99,201.67,201.63,19.77]
[1756690709736,7.99,201.67,201.58,7.25]
[1756690709937,7.99,201.67,201.63,19.77]
[1756690710431,7.99,201.67,201.58,7.25]
[1756690710637,7.99,201.67,201.63,19.77]
[1756690710833,3.5050158,201.7,201.63,19.77]
[1756690711134,131.22,201.69,201.62,7.25]
[1756690711339,131.22,201.69,201.55,7.25]
[1756690712038,130.6,201.68,201.66,19.77]
[1756690712934,130.6,201.68,201.55,7.25]
[1756690713135,7.99,201.67,201.64,19.77]
[1756690713335,11.4950158,201.67,201.58,7.25]
[1756690713532,3.5050158,201.67,201.62,19.77]
[1756690713736,7.99,201.66,201.62,19.77]
[1756690714738,7.99,201.66,201.63,19.77]
[1756690715137,7.99,201.66,201.58,7.25]
[1756690715438,7.99,201.66,201.63,19.77]
[1756690715634,7.99,201.66,201.58,7.25]
[1756690716040,7.99,201.66,201.6,19.77]
[1756690717042,7.99,201.62,201.54,7.25]
[1756690717243,131.18,201.61,201.54,7.25]
[1756690717440,139.17,201.61,201.56,19.77]
[1756690717735,7.99,201.6,201.56,19.77]
[1756690718240,131.18,201.61,201.56,19.77]
[1756690718440,7.5,201.6,201.56,19.77]
[1756690718938,7.5,201.6,201.5,7.34]
[1756690719240,138.68,201.61,201.55,19.77]
[1756690721238,7.5,201.58,201.5,7.34]
[1756690721444,7.5,201.58,201.52,19.77]
[1756690722338,131.18,201.57,201.52,19.77]
[1756690722734,7.5,201.56,201.46,7.34]
[1756690722938,131.18,201.57,201.52,19.77]
[1756690723143,131.18,201.57,201.46,7.34]
[1756690723144,7.5,201.56,201.46,7.34]
[1756690723342,131.18,201.57,201.52,19.77]
[1756690723742,138.68,201.57,201.46,7.34]
[1756690724044,7.5,201.56,201.52,19.77]
[1756690724246,131.18,201.57,201.52,19.77]
[1756690724444,7.5,201.56,201.46,7.34]
[1756690724746,138.68,201.57,201.51,19.77]
[1756690725143,7.5,201.54,201.46,7.34]
[1756690725446,3.5050158,201.55,201.51,19.77]
[1756690725641,7.5,201.54,201.5,19.77]
[1756690726036,3.5050158,201.55,201.5,19.77]
[1756690726447,7.5,201.54,201.5,19.77]
[1756690726645,7.5,201.6,201.53,19.77]
[1756690726947,131.16,201.59,201.54,19.77]
[1756690727149,131.16,201.59,201.55,7.34]
[1756690727350,131.16,201.58,201.54,7.34]
[1756690727541,131.16,201.58,201.55,19.77]
[1756690727844,131.16,201.58,201.54,19.77]
[1756690728045,131.16,201.58,201.52,7.34]
[1756690728246,131.16,201.58,201.55,19.77]
[1756690729149,7.5,201.64,201.57,19.77]
[1756690729342,131.14,201.63,201.56,7.34]
[1756690729544,138.64,201.63,201.58,19.77]
[1756690730052,138.64,201.63,201.55,7.34]
[1756690730244,7.5,201.62,201.58,19.77]
[1756690730750,7.5,201.62,201.55,7.34]
[1756690730946,7.5,201.62,201.58,19.77]
[1756690731344,7.5,201.62,201.55,7.34]
[1756690731547,7.5,201.62,201.58,19.77]
[1756690731842,7.5,201.61,201.58,19.77]
[1756690732042,7.5,201.61,201.55,7.34]
[1756690732253,11.0050158,201.58,201.48,7.34]
[1756690732548,3.5050158,201.55,201.48,7.34]
[1756690732741,105.02,201.54,201.51,19.77]
[1756690733547,112.52,201.54,201.51,19.77]
[1756690733847,7.5,201.53,201.51,19.77]
[1756690734039,105.02,201.54,201.51,19.77]
[1756690735239,7.5,201.53,201.51,19.77]
[1756690735943,105.02,201.54,201.42,4.09298262]
[1756690736147,7.5,201.53,201.5,19.77]
[1756690736344,105.02,201.54,201.5,19.77]
[1756690736545,131.1,201.53,201.51,7.34]
[1756690736749,131.1,201.52,201.51,7.34]
[1756690737140,131.1,201.52,201.51,27.11]
[1756690737549,131.1,201.52,201.51,19.77]
[1756690740452,131.1,201.52,201.51,27.11]
[1756690740650,131.1,201.52,201.51,19.77]
[1756690743150,131.06,201.52,201.51,19.77]
[1756690743853,131.06,201.52,201.51,27.11]
[1756690744048,131.04,201.53,201.51,27.11]
[1756690744246,131.04,201.53,201.44,7.34]
[1756690744446,2.19469076,201.51,201.44,7.34]
[1756690745151,2.19469076,201.51,201.5,19.77]
[1756690745352,2.19469076,201.51,201.44,7.34]
[1756690745353,9.69469076,201.51,201.44,7.34]
[1756690745555,7.5,201.5,201.49,19.77]
[1756690745956,7.5,201.5,201.44,7.34]
[1756690746351,7.5,201.5,201.48,19.77]
[1756690747248,2.19469076,201.51,201.49,19.77]
[1756690747555,131.02,201.5,201.45,7.34]
[1756690747745,2.19469076,201.57,201.45,7.34]
[1756690748250,2.19469076,201.57,201.44,6.28767338]
[1756690748251,68.26,201.56,201.55,19.77]
[1756690748456,9.69469076,201.6,201.55,7.33]
[1756690748653,131.02,201.59,201.51,7.33]
[1756690748855,131.02,201.59,201.57,19.77]
[1756690749257,2.19469076,201.6,201.58,19.77]
[1756690749457,131.0,201.59,201.58,19.77]
[1756690750454,11.28990369,201.64,201.58,19.77]
[1756690750659,131.0,201.63,201.57,7.33]
[1756690750860,333.36,201.66,201.64,19.77]
[1756690751065,131.0,201.65,201.64,19.77]
[1756690751353,131.0,201.65,201.54,3.50990369]
[1756690751354,131.0,201.65,201.55,7.33]
[1756690751563,333.36,201.66,201.64,19.77]
[1756690751760,333.36,201.66,201.65,19.77]
[1756690751959,464.34,201.66,201.65,19.77]
[1756690753766,333.36,201.66,201.65,27.1]
[1756690754060,464.3,201.66,201.65,27.1]
[1756690754460,464.3,201.66,201.65,19.77]
[1756690754766,472.08,201.66,201.6,7.33]
[1756690755059,472.08,201.66,201.63,19.77]
[1756690756157,333.36,201.66,201.57,3.50990369]
[1756690756361,130.92,201.65,201.58,7.33]
[1756690756563,333.36,201.66,201.65,19.77]
[1756690756752,464.26,201.66,201.65,19.77]
[1756690757154,333.36,201.66,201.65,27.1]
[1756690757663,7.78,201.75,201.65,27.6]
[1756690757866,130.88,201.74,201.71,19.77]
[1756690758459,130.88,201.74,201.72,19.77]
[1756690758859,130.88,201.74,201.68,7.33]
[1756690759168,130.88,201.74,201.72,19.77]
[1756690759563,7.78,201.77,201.73,19.77]
[1756690759761,333.46,201.78,201.76,19.77]
[1756690760065,130.86,201.77,201.76,19.77]
[1756690760462,130.86,201.77,201.69,7.33]
[1756690760662,7.78,201.76,201.74,19.77]
[1756690761160,7.78,201.76,201.69,7.33]
[1756690761465,7.78,201.76,201.74,19.77]
[1756690761960,7.78,201.76,201.69,7.33]
[1756690762166,7.78,201.76,201.73,19.77]
[1756690762666,7.78,201.76,201.69,7.33]
[1756690762861,7.78,201.76,201.62,3.50990369]
[1756690763065,7.78,201.76,201.7,19.77]
[1756690763566,7.78,201.76,201.63,7.33]
[1756690763766,7.78,201.76,201.7,19.77]
[1756690764161,7.78,201.76,201.63,7.33]
[1756690764363,7.78,201.76,201.7,19.77]
[1756690764765,333.46,201.78,201.63,7.33]
[1756690764964,130.76,201.77,201.66,7.33]
[1756690765171,130.76,201.77,201.75,19.77]
[1756690765972,130.76,201.77,201.76,19.77]
[1756690766269,7.78,201.92,201.77,7.33]
[1756690766765,13.72,201.91,201.85,19.77]
[1756690766971,7.78,201.9,201.83,19.77]
[1756690767367,7.78,201.9,201.81,7.33]
[1756690767770,7.78,201.9,201.85,19.77]
[1756690768072,7.78,201.9,201.87,19.77]
[1756690768477,13.72,201.91,201.87,19.77]
[1756690768669,13.72,201.91,201.88,19.77]
[1756690768865,7.78,201.9,201.81,7.33]
[1756690769175,7.78,201.9,201.85,19.77]
[1756690769375,13.72,201.91,201.85,19.77]
[1756690769568,7.78,201.9,201.81,7.33]
[1756690769768,25.00990369,201.91,201.85,19.77]
[1756690770168,25.00990369,201.91,201.81,7.33]
[1756690770364,25.00990369,201.91,201.85,19.77]
[1756690771275,7.78,201.9,201.86,19.77]
[1756690771467,7.78,201.9,201.81,7.33]
[1756690771669,7.78,201.9,201.84,19.77]
[1756690772675,13.72,201.91,201.78,7.33]
[1756690772872,13.72,201.91,201.87,19.77]
[1756690773078,7.78,201.9,201.87,19.77]
[1756690773276,7.78,201.9,201.66,322.09298262]
[1756690773277,7.78,201.9,201.75,3.50990369]
[1756690773472,7.78,201.9,201.8,7.33]
[1756690773777,7.78,201.9,201.84,19.77]
[1756690774174,7.78,201.9,201.8,7.33]
[1756690774372,7.78,201.9,201.84,19.77]
[1756690774574,25.00990369,201.91,201.85,19.77]
[1756690774878,25.00990369,201.91,201.84,19.77]
[1756690775377,25.00990369,201.91,201.85,19.77]
[1756690775671,21.5,201.91,201.85,19.77]
[1756690777779,21.5,201.91,201.86,19.77]
[1756690778278,21.5,201.91,201.87,19.77]
[1756690778475,7.58,201.97,201.84,8.04]
[1756690778778,11.08990369,201.95,201.84,8.04]
[1756690778975,7.58,201.94,201.9,19.77]
[1756690779174,3.50990369,201.95,201.9,19.77]
[1756690779377,7.58,201.94,201.84,8.04]
[1756690779578,7.58,201.94,201.9,19.77]
[1756690780081,11.08990369,201.95,201.84,8.04]
[1756690780280,7.58,201.94,201.9,19.77]
[1756690780680,130.54,201.96,201.9,19.77]
[1756690781684,7.58,201.95,201.84,8.04]
[1756690781982,11.08990369,201.95,201.84,8.04]
[1756690782375,7.58,201.95,201.91,19.77]
[1756690782576,7.58,201.95,201.87,8.04]
[1756690782776,7.58,201.95,201.91,19.77]
[1756690782977,7.58,201.95,201.9,19.77]
[1756690783274,138.12,201.96,201.9,19.77]
[1756690783475,7.58,201.94,201.78,8.04]
[1756690783679,7.58,201.94,201.88,19.77]
[1756690784181,7.58,201.94,201.83,8.04]
[1756690784378,7.58,201.94,201.88,19.77]
[1756690784774,7.58,201.94,201.83,8.04]
[1756690784982,7.58,201.94,201.88,19.77]
[1756690785483,7.58,201.94,201.83,8.04]
[1756690785677,7.58,201.94,201.88,19.77]
[1756690786073,7.58,201.94,201.83,8.04]
[1756690786278,7.58,201.94,201.88,19.77]
[1756690786683,7.58,201.94,201.83,8.04]
[1756690786887,7.58,201.94,201.88,19.77]
[1756690787478,7.58,201.94,201.83,8.04]
[1756690787679,7.58,201.94,201.87,19.77]
[1756690789783,7.58,201.94,201.88,19.77]
[1756690790388,3.50990369,201.92,201.83,8.04]
[1756690790589,3.50990369,201.92,201.86,19.77]
[1756690790590,7.58,201.91,201.86,19.77]
[1756690790786,130.38,201.9,201.85,19.77]
[1756690791083,7.58,201.89,201.84,19.77]
[1756690792090,132.56800768,201.9,201.85,8.04]
[1756690792691,7.58,201.89,201.81,8.04]
[1756690792883,2.18800768,201.86,201.81,8.04]
[1756690793090,2.18800768,201.86,201.82,19.77]
[1756690793289,7.58,201.85,201.82,19.77]
[1756690793491,130.34,201.84,201.77,8.04]
[1756690793686,7.58,201.83,201.81,19.77]
[1756690793890,9.76800768,201.83,201.81,19.77]
[1756690794092,9.76800768,201.83,201.77,8.04]
[1756690794292,9.76800768,201.83,201.81,19.77]
[1756690794696,9.76800768,201.83,201.77,8.04]
[1756690794990,9.76800768,201.83,201.81,19.77]
[1756690795187,9.76800768,201.83,201.8,19.77]
[1756690795591,9.76800768,201.83,201.77,8.04]
[1756690795891,9.76800768,201.83,201.8,19.77]
[1756690796090,7.58,201.83,201.77,8.04]
[1756690796488,137.92,201.84,201.78,19.77]
[1756690797993,138.78263525,201.84,201.78,19.77]
[1756690798892,8.44263525,201.84,201.78,19.77]
[1756690799090,8.44263525,201.84,201.79,8.04]
[1756690799091,25.94,201.83,201.79,8.04]
[1756690800291,25.94,201.83,201.68,4.09298262]
[1756690800484,27.18,201.82,201.79,19.77]
[1756690800690,7.58,201.87,201.82,19.77]
[1756690800889,42.46,201.86,201.82,19.77]
[1756690801286,50.04,201.86,201.82,19.77]
[1756690801693,50.04,201.86,201.83,19.77]
[1756690802195,50.04,201.86,201.79,8.04]
[1756690802395,0.8625818,201.87,201.83,19.77]
[1756690802690,70.18,201.86,201.83,19.77]
[1756690802892,130.26,201.85,201.83,19.77]
[1756690803592,7.58,201.84,201.75,8.04]
[1756690803790,11.08306374,201.84,201.78,19.77]
[1756690804192,25.86,201.83,201.7,8.04]
[1756690804392,25.86,201.83,201.8,19.77]
[1756690805695,7.58,201.82,201.7,8.04]
[1756690805890,29.36306374,201.83,201.77,19.77]
[1756690806094,36.94306374,201.83,201.77,19.77]
[1756690806597,36.94306374,201.83,201.73,8.04]
[1756690806799,3.50306374,201.79,201.68,8.04]
[1756690807186,7.58,201.78,201.68,8.04]
[1756690807386,78.3,201.77,201.73,19.77]
[1756690807588,85.88,201.77,201.73,19.77]
[1756690808292,85.84,201.77,201.68,8.04]
[1756690808495,3.50306374,201.75,201.68,8.04]
[1756690808692,3.50306374,201.75,201.7,19.77]
[1756690808889,7.54,201.74,201.7,19.77]
[1756690809095,7.54,201.74,201.68,8.04]
[1756690809294,7.54,201.74,201.7,19.77]
[1756690809493,130.18,201.73,201.7,19.77]
[1756690809798,130.18,201.74,201.64,7.99]
[1756690809998,130.18,201.75,201.73,19.77]
[1756690810193,137.72,201.75,201.72,19.77]
[1756690810393,3.50306374,201.74,201.63,7.99]
[1756690810598,7.54,201.73,201.69,19.77]
[1756690810794,130.18,201.73,201.63,7.99]
[1756690810998,130.18,201.73,201.64,7.99]
[1756690811200,130.18,201.77,201.72,19.77]
[1756690811396,130.18,201.77,201.65,7.99]
[1756690811701,130.18,201.77,201.75,19.77]
[1756690812899,7.54,201.8,201.75,19.77]
[1756690813200,137.72,201.79,201.75,19.77]
[1756690813595,7.54,201.78,201.75,19.77]
[1756690817803,3.50306374,201.81,201.75,19.77]
[1756690817999,130.12,201.8,201.76,27.76]
[1756690818396,137.66,201.8,201.76,19.77]
[1756690818602,3.50306374,201.79,201.72,7.99]
[1756690818901,7.54,201.78,201.76,19.77]
[1756690819304,7.54,201.78,201.72,7.99]
[1756690819501,7.54,201.78,201.76,19.77]
[1756690819804,7.54,201.78,201.75,19.77]
[1756690820300,3.50306374,201.79,201.75,27.76]
[1756690820600,3.50306374,201.79,201.76,7.99]
[1756690820800,130.08,201.78,201.76,27.76]
[1756690821104,333.04,201.84,201.76,7.99]
[1756690821501,130.08,201.83,201.8,27.76]
[1756690821905,130.08,201.83,201.81,27.76]
[1756690822402,333.04,201.84,201.83,7.99]
[1756690822808,463.1,201.84,201.83,7.99]
[1756690823001,463.1,201.84,201.83,27.76]
[1756690824006,470.64,201.84,201.77,7.99]
[1756690824197,463.1,201.84,201.8,19.77]
[1756690824402,7.54,201.83,201.8,19.77]
[1756690824906,463.1,201.84,201.8,19.77]
[1756690825208,463.1,201.84,201.77,7.99]
[1756690825209,333.04,201.84,201.82,19.77]
[1756690825408,130.0,201.83,201.82,19.77]
[1756690826312,333.04,201.84,201.82,19.77]
[1756690826507,333.04,201.84,201.73,7.99]
[1756690826708,130.0,201.83,201.73,7.99]
[1756690827105,130.0,201.83,201.82,19.77]
[1756690828804,333.04,201.84,201.83,7.99]
[1756690829001,463.0,201.84,201.83,27.76]
[1756690829605,7.54,201.87,201.83,27.76]
[1756690829606,11.04205741,201.91,201.83,27.76]
[1756690829805,86.28,201.9,201.87,19.77]
[1756690830205,86.28,201.9,201.78,3.50205741]
[1756690830411,129.94,201.89,201.79,7.99]
[1756690830711,7.54,201.94,201.9,19.77]
[1756690830901,129.94,201.93,201.9,19.77]
[1756690831104,129.94,201.93,201.86,7.99]
[1756690831307,7.54,201.92,201.81,7.99]
[1756690831610,7.54,201.92,201.86,19.77]
[1756690831918,7.54,201.92,201.81,7.99]
[1756690832409,7.54,201.92,201.87,7.99]
[1756690832710,129.9,201.91,201.89,19.77]
[1756690833110,129.9,201.91,201.8,7.99]
[1756690833313,129.9,201.91,201.89,19.77]
[1756690833709,129.9,201.91,201.85,7.99]
[1756690833908,129.9,201.91,201.89,19.77]
[1756690834311,129.9,201.91,201.79,4.09298262]
[1756690834510,7.54,201.9,201.8,7.99]
[1756690834810,129.9,201.91,201.86,19.77]
[1756690835007,7.54,201.9,201.86,19.77]
[1756690835210,7.54,201.9,201.8,7.99]
[1756690835211,129.9,201.91,201.8,7.99]
[1756690835411,7.54,201.9,201.86,19.77]
[1756690835708,7.54,201.9,201.85,19.77]
[1756690835907,137.44,201.91,201.85,19.77]
[1756690836111,137.44,201.91,201.8,7.99]
[1756690836312,137.44,201.91,201.85,19.77]
[1756690836706,137.44,201.91,201.83,7.99]
[1756690836907,137.44,201.91,201.87,19.77]
[1756690836908,129.82,201.9,201.87,19.77]
[1756690837311,129.82,201.9,201.83,7.99]
[1756690837510,129.82,201.9,201.87,19.77]
[1756690837705,129.82,201.9,201.86,19.77]
[1756690837908,129.82,201.9,201.78,7.99]
[1756690838108,129.82,201.9,201.89,19.77]
[1756690838307,7.32,201.89,201.86,19.77]
[1756690838709,7.32,201.89,201.83,7.49]
[1756690838912,7.32,201.89,201.86,19.77]
[1756690839425,7.32,201.89,201.83,7.49]
[1756690839713,129.82,201.9,201.86,19.77]
[1756690839914,129.78,201.9,201.78,7.49]
[1756690840212,137.1,201.9,201.82,7.49]
[1756690840409,7.32,201.94,201.88,19.77]
[1756690840616,129.76,201.93,201.85,7.49]
[1756690840914,7.32,201.92,201.9,19.77]
[1756690841109,129.76,201.93,201.89,19.77]
[1756690841310,7.32,201.92,201.85,7.49]
[1756690841512,133.26205741,201.93,201.88,19.77]
[1756690841712,133.26205741,201.93,201.85,7.49]
[1756690841713,7.32,201.92,201.86,19.77]
[1756690842114,134.12433998,201.93,201.87,19.77]
[1756690842309,4.36433998,201.93,201.88,19.77]
[1756690842515,137.06,201.92,201.88,19.77]
[1756690843611,137.06,201.92,201.89,19.77]
[1756690844116,137.06,201.92,201.84,7.49]
[1756690844317,137.06,201.92,201.89,19.77]
[1756690844820,137.06,201.92,201.77,7.49]
[1756690845120,129.74,201.92,201.87,19.77]
[1756690845518,7.32,201.91,201.8,7.49]
[1756690845719,7.32,201.91,201.87,19.77]
[1756690845915,2.1876084,201.9,201.87,19.77]
[1756690846117,2.1876084,201.9,201.8,7.49]
[1756690846321,7.32,201.89,201.87,19.77]
[1756690846525,129.68,201.88,201.87,19.77]
[1756690846823,129.68,201.88,201.8,7.49]
[1756690847016,137.0,201.88,201.87,19.77]
[1756690847413,137.0,201.88,201.8,7.49]
[1756690847812,137.0,201.88,201.86,19.77]
[1756690852828,137.0,201.88,201.8,7.49]
[1756690853028,137.0,201.88,201.86,19.77]
[1756690853230,9.5076084,201.87,201.75,7.49]
[1756690853426,7.32,201.86,201.83,19.77]
[1756690853725,2.1876084,201.9,201.78,7.49]
[1756690853726,9.5076084,201.84,201.78,7.49]
[1756690853925,9.5076084,201.84,201.8,19.77]
[1756690854230,7.32,201.83,201.8,19.77]
[1756690854423,129.58,201.82,201.72,7.49]
[1756690854627,7.32,201.81,201.79,19.77]
[1756690855023,129.56,201.8,201.79,19.77]
[1756690858529,7.32,201.79,201.71,7.49]
[1756690858929,129.56,201.8,201.71,7.49]
[1756690858930,136.88,201.8,201.74,19.77]
[1756690860330,2.1876084,201.78,201.71,7.49]
[1756690860527,7.32,201.76,201.74,19.77]
[1756690860732,129.52,201.77,201.74,19.77]
[1756690861040,7.32,201.76,201.68,7.49]
[1756690861231,129.52,201.77,201.74,19.77]
[1756690861427,7.32,201.76,201.74,19.77]
[1756690861631,129.52,201.77,201.65,4.10367162]
[1756690861632,7.32,201.74,201.65,4.10367162]
[1756690861834,9.5076084,201.72,201.63,7.49]
[1756690862239,7.32,201.71,201.63,7.49]
[1756690862439,7.32,201.71,201.67,19.77]
[1756690862637,7.32,201.71,201.63,7.49]
[1756690862638,2.1876084,201.69,201.63,7.49]
[1756690862841,129.48,201.68,201.66,19.77]
[1756690864647,7.32,201.67,201.59,7.49]
[1756690864841,2.1876084,201.66,201.63,19.77]
[1756690865039,7.32,201.65,201.63,19.77]
[1756690865240,129.48,201.64,201.59,7.49]
[1756690865442,129.48,201.64,201.63,19.77]
[1756690865744,136.8,201.64,201.62,19.77]
[1756690866245,129.48,201.63,201.59,7.49]
[1756690866541,129.48,201.63,201.62,19.77]
[1756690866745,129.48,201.63,201.59,7.49]
[1756690867045,136.8,201.63,201.52,7.49]
[1756690867248,136.8,201.63,201.51,2.1876084]
[1756690867249,7.32,201.62,201.61,19.77]
[1756690867636,7.32,201.62,201.55,7.49]
[1756690867841,129.46,201.61,201.6,19.77]